bitfinex-derivatives/quotes_SOLF0:USTF0_20250731
["timestamp","ask_amount","ask_price","bid_price","bid_amount"]
[1753991155840,3.0,175.85,175.82,8.9782]
[1753991156042,3.0,175.85,175.83,3.29]
[1753991156244,3.0,175.86,175.84,3.29]
[1753991156850,3.0,175.85,175.83,3.29]
[1753991157444,3.0,175.91,175.83,3.29]
[1753991157647,3.0,175.9,175.86,7.31978504]
[1753991158248,3.24,175.88,175.84,10.60978504]
[1753991158442,3.24,175.88,175.81,3.24]
[1753991159246,5.6875,175.85,175.81,3.24]
[1753991159449,3.24,175.84,175.81,3.24]
[1753991159647,3.24,175.84,175.82,3.24]
[1753991159849,3.24,175.83,175.8,10.55978504]
[1753991160049,3.24,175.82,175.8,10.55978504]
[1753991161259,3.24,175.87,175.75,3.24]
[1753991161452,3.24,175.86,175.84,3.24]
[1753991161650,7.31978504,175.92,175.83,7.31978504]
[1753991161851,5.688,175.84,175.81,7.31978504]
[1753991162055,3.24,175.83,175.81,7.31978504]
[1753991162259,3.24,175.84,175.82,3.24]
[1753991162453,5.6873,175.86,175.82,3.24]
[1753991162756,3.24,175.84,175.82,3.24]
[1753991163256,3.24,175.87,175.85,3.24]
[1753991163458,3.24,175.86,175.85,3.24]
[1753991163651,3.24,175.94,175.85,3.24]
[1753991163846,7.31978504,175.93,175.83,10.55978504]
[1753991164049,3.24,175.92,175.83,7.31978504]
[1753991164256,3.24,175.9,175.81,10.55978504]
[1753991164454,3.24,175.9,175.81,7.31978504]
[1753991164655,5.6877,175.85,175.81,10.55978504]
[1753991164860,5.6877,175.85,175.82,3.24]
[1753991164861,8.9277,175.85,175.82,3.24]
[1753991165058,7.31978504,175.89,175.79,10.55978504]
[1753991165253,3.24,175.88,175.79,10.55978504]
[1753991165452,3.24,175.88,175.79,7.31978504]
[1753991165760,3.24,175.88,175.81,7.31978504]
[1753991166057,3.24,175.92,175.84,3.24]
[1753991166257,3.24,175.92,175.83,7.31978504]
[1753991166453,3.24,175.92,175.83,10.55978504]
[1753991167054,3.24,175.86,175.84,3.24]
[1753991167357,3.24,175.92,175.85,3.24]
[1753991167557,7.31978504,175.93,175.85,3.24]
[1753991167558,5.6859,175.9,175.85,13.00718504]
[1753991167854,3.24,175.94,175.88,3.24]
[1753991168054,5.6854,175.92,175.88,8.9265]
[1753991168353,3.24,175.98,175.89,10.55978504]
[1753991168757,7.31978504,175.99,175.89,10.55978504]
[1753991168958,3.24,175.98,175.89,10.55978504]
[1753991169451,7.31978504,176.0,175.89,10.55978504]
[1753991169452,8.9251,175.93,175.9,3.24]
[1753991169651,7.31978504,175.98,175.89,7.31978504]
[1753991169848,5.6855,175.92,175.89,7.31978504]
[1753991170052,3.24,175.99,175.91,10.55978504]
[1753991170255,3.24,175.99,175.92,3.24]
[1753991170454,8.9245,175.95,175.93,3.24]
[1753991171259,3.24,175.93,175.91,10.55978504]
[1753991171756,3.24,175.92,175.89,7.31978504]
[1753991171964,3.24,175.9,175.88,3.24]
[1753991172154,3.24,175.9,175.87,7.31978504]
[1753991172463,3.24,175.97,175.87,10.55978504]
[1753991173251,3.24,175.97,175.88,3.24]
[1753991173963,106.4,176.01,175.83,3.24]
[1753991173964,7.31978504,175.92,175.83,3.24]
[1753991174163,3.24,175.91,175.83,3.24]
[1753991174553,5.6871,175.87,175.83,8.9279]
[1753991174760,8.9271,175.87,175.85,3.24]
[1753991175162,5.6872,175.86,175.85,3.24]
[1753991175366,3.24,175.87,175.85,3.24]
[1753991175557,3.24,175.91,175.82,3.24]
[1753991175858,5.6875,175.85,175.82,3.24]
[1753991176064,3.24,175.82,175.8,3.24]
[1753991176364,5.6873,175.86,175.82,5.6884]
[1753991176565,3.24,175.87,175.8,3.24]
[1753991177459,5.688,175.84,175.8,8.9291]
[1753991177660,3.24,175.84,175.82,3.24]
[1753991178270,3.24,175.89,175.82,3.24]
[1753991178768,3.24,175.87,175.84,3.24]
[1753991178955,3.24,175.87,175.85,3.24]
[1753991179161,5.687,175.87,175.83,7.31978504]
[1753991179361,3.24,175.92,175.84,3.24]
[1753991180161,5.6865,175.89,175.84,8.9276]
[1753991180369,3.24,175.88,175.79,3.24]
[1753991180762,3.24,175.88,175.8,5.6891]
[1753991180966,3.24,175.86,175.79,3.24]
[1753991181162,3.24,175.85,175.79,3.24]
[1753991181871,5.6879,175.84,175.79,5.6892]
[1753991182066,3.24,175.83,175.81,3.24]
[1753991183065,3.24,175.85,175.76,7.31978504]
[1753991183262,3.24,175.83,175.76,3.24]
[1753991183661,7.31978504,175.84,175.78,8.9297]
[1753991183856,3.24,175.8,175.78,5.6897]
[1753991184057,3.24,175.82,175.79,8.9295]
[1753991184266,3.24,175.82,175.79,3.24]
[1753991184466,3.24,175.87,175.78,7.31978504]
[1753991184768,3.24,175.92,175.83,3.24]
[1753991185160,3.24,175.87,175.84,3.24]
[1753991185357,3.24,175.87,175.85,3.24]
[1753991186369,3.24,175.89,175.86,3.24]
[1753991186669,3.24,175.89,175.87,3.24]
[1753991186867,7.31978504,175.95,175.85,7.31978504]
[1753991187072,3.24,175.88,175.85,10.55978504]
[1753991187671,3.24,175.88,175.86,3.24]
[1753991187862,3.24,175.9,175.87,3.24]
[1753991188069,5.6862,175.9,175.87,8.9269]
[1753991188363,3.29,175.96,175.87,10.49978504]
[1753991188570,5.6855,175.92,175.89,13.00578504]
[1753991188763,3.29,175.92,175.9,3.18]
[1753991189167,3.29,175.97,175.89,7.31978504]
[1753991189669,10.60978504,175.97,175.88,5.6863]
[1753991189867,3.29,175.89,175.87,10.49978504]
[1753991190167,3.29,175.9,175.83,3.18]
[1753991190779,3.29,175.86,175.83,3.18]
[1753991190973,11.3684,175.96,175.74,81.39495743]
[1753991190974,3.29,175.88,175.8,3.18]
[1753991191161,3.29,175.86,175.8,3.18]
[1753991191472,3.29,175.88,175.82,3.18]
[1753991191772,3.29,175.88,175.82,8.8684]
[1753991191973,3.29,175.88,175.82,3.18]
[1753991192374,3.29,175.88,175.82,10.49978504]
[1753991193072,3.29,175.91,175.86,7.31978504]
[1753991193372,5.6864,175.89,175.86,13.00698504]
[1753991193670,3.29,175.93,175.86,13.00698504]
[1753991193671,3.29,175.93,175.86,7.31978504]
[1753991194064,3.29,175.93,175.85,8.8673]
[1753991194570,7.31978504,175.93,175.84,7.31978504]
[1753991194768,3.29,175.92,175.83,3.18]
[1753991194966,3.29,175.92,175.84,7.31978504]
[1753991195470,3.29,175.92,175.83,3.18]
[1753991195668,5.6871,175.87,175.84,3.18]
[1753991195973,3.29,175.89,175.84,7.31978504]
[1753991196179,5.6866,175.88,175.85,3.18]
[1753991196370,3.29,175.88,175.86,3.18]
[1753991196567,5.6864,175.89,175.87,3.18]
[1753991197371,5.6865,175.88,175.87,3.18]
[1753991197773,8.9765,175.88,175.85,8.8674]
[1753991197975,8.9765,175.88,175.86,3.18]
[1753991198278,11.98295304,175.95,175.85,5.6874]
[1753991198473,3.29,175.92,175.82,10.49978504]
[1753991198771,3.29,175.83,175.8,10.49978504]
[1753991198973,7.31978504,175.87,175.78,7.31978504]
[1753991199182,5.688,175.84,175.78,10.49978504]
[1753991199479,3.29,175.88,175.82,5.6885]
[1753991199678,3.29,175.88,175.82,3.18]
[1753991199977,3.29,175.9,175.81,16.18848504]
[1753991200168,5.687,175.87,175.81,10.49978504]
[1753991200375,7.31978504,175.91,175.81,7.31978504]
[1753991200574,3.29,175.85,175.82,8.8683]
[1753991200780,3.29,175.85,175.83,3.18]
[1753991201076,8.9771,175.87,175.85,3.18]
[1753991201575,3.29,175.85,175.81,3.18]
[1753991201771,3.29,175.86,175.82,3.18]
[1753991201973,7.31978504,175.91,175.83,3.18]
[1753991202275,3.29,175.9,175.81,7.31978504]
[1753991202465,3.29,175.9,175.82,3.18]
[1753991203276,5.6871,175.87,175.82,8.8684]
[1753991203475,5.6871,175.87,175.81,7.31978504]
[1753991203671,7.31978504,175.91,175.81,7.31978504]
[1753991203871,3.29,175.9,175.82,8.8684]
[1753991204480,5.6871,175.87,175.82,5.6884]
[1753991204668,3.29,175.86,175.84,3.18]
[1753991204876,5.6875,175.86,175.81,7.31978504]
[1753991205079,7.31978504,175.9,175.81,7.31978504]
[1753991205276,3.29,175.82,175.81,7.31978504]
[1753991205675,3.29,175.89,175.81,7.31978504]
[1753991205975,5.6871,175.87,175.82,3.18]
[1753991206176,5.6871,175.87,175.83,3.18]
[1753991206477,3.29,175.89,175.81,10.49978504]
[1753991207176,7.31978504,175.88,175.78,3.18]
[1753991207375,7.31978504,175.86,175.78,3.18]
[1753991207681,3.29,175.85,175.78,3.18]
[1753991207878,3.29,175.81,175.78,3.18]
[1753991208178,7.31978504,175.84,175.75,10.49978504]
[1753991208379,3.29,175.83,175.76,3.18]
[1753991209083,4.663168,175.87,175.77,7.31978504]
[1753991209383,6.23924804,175.89,175.86,3.18]
[1753991209384,3.29,175.89,175.86,3.18]
[1753991209586,3.29,175.89,175.78,7.31978504]
[1753991209587,3.29,175.89,175.87,10.49978504]
[1753991209879,3.29,175.89,175.87,7.31978504]
[1753991210070,3.29,175.91,175.87,10.49978504]
[1753991210271,5.6858,175.91,175.87,7.31978504]
[1753991210472,3.29,175.9,175.87,10.49978504]
[1753991210676,3.29,175.94,175.87,7.31978504]
[1753991210882,3.29,175.9,175.87,10.49978504]
[1753991211181,3.29,175.88,175.87,7.31978504]
[1753991211377,3.29,175.88,175.85,10.49978504]
[1753991211577,3.29,175.88,175.85,7.31978504]
[1753991211883,3.29,175.9,175.87,10.49978504]
[1753991212181,8.9761,175.9,175.87,10.49978504]
[1753991212370,3.29,175.89,175.87,10.49978504]
[1753991212573,106.44,175.95,175.87,7.31978504]
[1753991212769,106.44,175.95,175.85,7.31978504]
[1753991212770,5.6865,175.89,175.85,7.31978504]
[1753991212976,3.29,175.88,175.85,10.49978504]
[1753991213481,3.29,175.94,175.85,10.49978504]
[1753991213782,7.31978504,175.91,175.81,10.49978504]
[1753991213972,3.29,175.9,175.81,10.49978504]
[1753991214169,7.31978504,175.89,175.81,3.18]
[1753991214376,3.29,175.88,175.81,3.18]
[1753991214679,3.29,175.83,175.81,3.18]
[1753991214879,3.29,175.85,175.79,7.31978504]
[1753991215081,8.9777,175.85,175.82,3.18]
[1753991215279,3.29,175.84,175.79,3.18]
[1753991215473,3.29,175.88,175.81,3.18]
[1753991215677,3.29,175.84,175.82,3.18]
[1753991217579,3.29,175.88,175.83,3.18]
[1753991217781,3.29,175.9,175.84,7.31978504]
[1753991217983,3.29,175.93,175.86,7.31978504]
[1753991218383,3.29,175.93,175.86,10.38978504]
[1753991218883,3.13,175.86,175.82,10.38978504]
[1753991219183,3.13,175.84,175.82,3.07]
[1753991219486,3.13,175.88,175.8,13.00888504]
[1753991219783,7.31978504,175.83,175.73,7.31978504]
[1753991220085,7.31978504,175.83,175.73,10.38978504]
[1753991220086,3.13,175.82,175.73,10.38978504]
[1753991220281,3.13,175.82,175.74,3.07]
[1753991220490,5.6904,175.76,175.72,5.6916]
[1753991220674,3.13,175.75,175.72,3.07]
[1753991220874,3.13,175.78,175.74,3.07]
[1753991221085,7.31978504,175.83,175.75,3.07]
[1753991221388,3.13,175.82,175.75,3.07]
[1753991221884,5.6899,175.78,175.75,3.07]
[1753991222085,8.8199,175.78,175.73,5.6911]
[1753991222279,5.6895,175.79,175.76,3.07]
[1753991222480,3.13,175.83,175.78,7.31978504]
[1753991222780,3.13,175.86,175.79,3.07]
[1753991222988,8.8189,175.81,175.78,10.38978504]
[1753991223183,3.13,175.8,175.78,10.38978504]
[1753991223379,8.8181,175.83,175.8,3.07]
[1753991223587,3.13,175.83,175.81,3.07]
[1753991224080,3.13,175.86,175.79,7.31978504]
[1753991224289,3.13,175.86,175.72,3.07]
[1753991224290,7.31978504,175.86,175.75,7.31978504]
[1753991224591,3.13,175.83,175.74,3.07]
[1753991225086,8.8197,175.79,175.75,3.07]
[1753991225288,8.8197,175.79,175.76,3.07]
[1753991225483,5.6899,175.78,175.76,3.07]
[1753991225681,3.13,175.77,175.74,10.38978504]
[1753991226281,3.13,175.77,175.75,3.07]
[1753991226588,3.13,175.83,175.77,3.07]
[1753991227782,3.13,175.83,175.77,8.7599]
[1753991228182,3.13,175.82,175.77,3.07]
[1753991228388,3.13,175.81,175.78,3.07]
[1753991228782,3.13,175.8,175.78,3.07]
[1753991229487,3.13,175.82,175.79,3.07]
[1753991229687,3.13,175.82,175.8,10.38978504]
[1753991229886,109.75,175.87,175.81,3.07]
[1753991230087,5.6874,175.86,175.84,10.38978504]
[1753991230389,109.75,175.87,175.84,10.38978504]
[1753991230585,3.13,175.86,175.84,10.38978504]
[1753991231089,8.8174,175.86,175.84,10.38978504]
[1753991231293,3.13,175.92,175.84,10.38978504]
[1753991231583,3.13,175.92,175.86,7.31978504]
[1753991231785,3.13,175.92,175.85,3.07]
[1753991231982,7.31978504,175.91,175.82,7.31978504]
[1753991232186,3.13,175.9,175.82,7.31978504]
[1753991232386,3.13,175.9,175.81,3.07]
[1753991232590,5.6879,175.84,175.81,3.07]
[1753991232792,8.8179,175.84,175.81,3.07]
[1753991233094,5.6882,175.83,175.81,3.07]
[1753991233286,3.13,175.84,175.82,3.07]
[1753991233790,5.6881,175.83,175.82,3.07]
[1753991234590,5.6881,175.83,175.8,13.00868504]
[1753991234782,5.6879,175.84,175.81,3.07]
[1753991234988,3.13,175.87,175.84,3.07]
[1753991235184,3.13,175.86,175.84,7.31978504]
[1753991235389,5.6874,175.85,175.84,7.31978504]
[1753991235792,3.13,175.86,175.84,10.38978504]
[1753991236292,5.6873,175.86,175.85,3.07]
[1753991236693,5.6874,175.85,175.84,7.31978504]
[1753991236888,3.13,175.86,175.84,10.38978504]
[1753991237288,106.6,175.92,175.84,7.31978504]
[1753991237488,106.6,175.92,175.86,10.38978504]
[1753991237691,3.13,175.91,175.86,10.38978504]
[1753991237887,8.8162,175.89,175.86,10.38978504]
[1753991238092,8.8162,175.89,175.87,3.07]
[1753991238295,3.13,175.89,175.87,3.07]
[1753991238501,5.6861,175.9,175.89,3.07]
[1753991239493,5.6862,175.89,175.88,7.31978504]
[1753991239694,5.6862,175.89,175.88,10.38978504]
[1753991239895,3.13,175.9,175.88,10.38978504]
[1753991240288,3.13,175.89,175.86,7.31978504]
[1753991240485,106.6,175.92,175.85,3.07]
[1753991240696,3.13,175.87,175.85,3.07]
[1753991240895,3.13,175.91,175.82,13.00798504]
[1753991241399,3.13,175.85,175.83,3.07]
[1753991242192,8.8175,175.85,175.83,3.07]
[1753991242795,5.6872,175.86,175.83,5.6881]
[1753991242991,3.13,175.91,175.85,3.07]
[1753991243198,3.13,175.9,175.87,3.07]
[1753991243795,3.13,175.89,175.86,10.38978504]
[1753991244195,3.13,175.88,175.84,7.31978504]
[1753991244500,3.13,175.91,175.82,10.38978504]
[1753991244998,3.13,175.91,175.84,7.31978504]
[1753991245198,3.13,175.91,175.85,3.07]
[1753991245395,113.79978504,175.94,175.85,3.07]
[1753991245396,106.48,175.94,175.85,5.6872]
[1753991245696,3.13,175.93,175.84,10.38978504]
[1753991245902,5.687,175.87,175.84,16.07738504]
[1753991246199,8.817,175.87,175.84,16.07738504]
[1753991246394,5.6874,175.85,175.84,3.07]
[1753991246598,3.13,175.92,175.84,3.07]
[1753991246996,8.8173,175.86,175.84,3.07]
[1753991247401,3.13,175.86,175.84,3.07]
[1753991248002,5.6869,175.87,175.85,3.07]
[1753991248299,8.8169,175.87,175.85,3.07]
[1753991248501,5.6871,175.86,175.85,3.07]
[1753991248696,7.31978504,175.89,175.78,10.62978504]
[1753991249001,5.6884,175.82,175.78,10.62978504]
[1753991249204,8.7184,175.82,175.79,8.9992]
[1753991249403,8.7184,175.82,175.79,3.31]
[1753991249404,3.03,175.82,175.79,3.31]
[1753991249599,8.7185,175.82,175.79,3.31]
[1753991249803,3.03,175.88,175.79,3.31]
[1753991249998,3.03,175.86,175.79,3.31]
[1753991252108,5.6883,175.83,175.8,5.689]
[1753991252400,3.03,175.85,175.82,3.31]
[1753991252601,5.6871,175.87,175.84,7.31978504]
[1753991252807,3.03,175.92,175.87,3.31]
[1753991253008,3.03,175.93,175.91,7.31978504]
[1753991253203,5.6852,175.92,175.91,10.62978504]
[1753991253513,118.41213842,175.98,175.87,7.31978504]
[1753991253705,5.6853,175.92,175.9,3.31]
[1753991253904,106.44,175.98,175.9,3.31]
[1753991254105,3.03,175.92,175.9,3.31]
[1753991254508,5.6857,175.91,175.89,7.31978504]
[1753991254706,5.6857,175.91,175.89,10.62978504]
[1753991254903,106.44,175.98,175.86,10.62978504]
[1753991254904,3.03,175.89,175.86,10.62978504]
[1753991255204,3.03,175.91,175.86,7.31978504]
[1753991255407,3.03,175.9,175.87,3.31]
[1753991256605,3.03,175.89,175.87,3.31]
[1753991257910,3.03,175.95,175.88,10.62978504]
[1753991258406,3.03,175.95,175.88,7.31978504]
[1753991258611,3.03,175.95,175.9,7.31978504]
[1753991258808,3.03,175.94,175.9,7.31978504]
[1753991259012,8.7151,175.93,175.91,3.31]
[1753991259613,5.6852,175.92,175.91,3.31]
[1753991260111,8.7152,175.92,175.9,7.31978504]
[1753991260316,5.6855,175.91,175.9,10.62978504]
[1753991260516,5.6855,175.91,175.9,7.31978504]
[1753991260712,8.7155,175.91,175.9,7.31978504]
[1753991261023,8.7167,175.88,175.86,10.62978504]
[1753991261222,3.03,175.94,175.87,3.31]
[1753991261427,5.6849,175.93,175.91,10.62978504]
[1753991261626,3.03,175.95,175.91,10.62978504]
[1753991261827,3.03,175.94,175.91,10.62978504]
[1753991262029,5.6852,175.92,175.91,10.62978504]
[1753991262520,8.7152,175.92,175.91,7.31978504]
[1753991263115,5.6852,175.92,175.91,10.62978504]
[1753991263317,3.03,175.94,175.92,3.31]
[1753991263521,3.03,176.0,175.94,3.31]
[1753991263726,106.4,176.02,175.95,7.31978504]
[1753991263923,8.7132,175.99,175.96,3.31]
[1753991264118,3.03,175.99,175.97,7.31978504]
[1753991264326,5.6838,175.97,175.94,8.9944]
[1753991264526,3.03,175.96,175.94,3.31]
[1753991264729,7.31978504,176.01,175.91,10.62978504]
[1753991264923,3.03,175.94,175.92,8.9949]
[1753991265121,3.03,175.94,175.92,3.31]
[1753991265320,3.03,175.97,175.93,3.31]
[1753991265524,8.7145,175.95,175.93,3.31]
[1753991265719,3.03,176.0,175.93,10.62978504]
[1753991266123,8.7135,175.98,175.95,8.9942]
[1753991266822,106.4,176.02,175.94,5.6844]
[1753991267130,3.03,176.01,175.93,7.31978504]
[1753991267625,3.03,176.01,175.92,3.31]
[1753991267931,3.03,176.01,175.92,8.995]
[1753991268125,3.03,176.01,175.92,3.31]
[1753991268326,3.03,175.96,175.93,3.31]
[1753991268625,7.31978504,176.0,175.91,7.31978504]
[1753991268824,5.6848,175.94,175.9,8.9956]
[1753991269026,5.6848,175.94,175.89,7.31978504]
[1753991269230,8.7148,175.94,175.9,3.31]
[1753991269430,5.6849,175.93,175.91,3.31]
[1753991269630,3.03,175.99,175.92,3.31]
[1753991270031,3.03,175.99,175.92,8.995]
[1753991270231,3.03,175.99,175.92,3.31]
[1753991271836,3.03,175.99,175.91,13.00518504]
[1753991271837,3.03,175.99,175.91,7.31978504]
[1753991272431,3.03,175.97,175.87,10.62978504]
[1753991272630,3.03,175.93,175.84,3.31]
[1753991272824,7.31978504,175.94,175.85,8.9974]
[1753991272825,8.7168,175.88,175.85,8.9974]
[1753991273029,8.7168,175.88,175.85,5.6874]
[1753991273337,8.7168,175.88,175.86,3.31]
[1753991273728,3.03,175.91,175.87,5.6868]
[1753991273932,3.03,175.9,175.88,3.31]
[1753991274735,5.686,175.9,175.86,5.6868]
[1753991274932,3.03,175.89,175.86,8.9968]
[1753991275133,3.03,175.93,175.85,7.31978504]
[1753991275330,3.03,175.93,175.86,3.31]
[1753991276233,3.03,175.93,175.86,8.9969]
[1753991276434,3.03,175.93,175.86,3.31]
[1753991276940,3.03,175.9,175.85,7.31978504]
[1753991277238,3.03,175.9,175.88,3.31]
[1753991278837,5.686,175.9,175.88,3.31]
[1753991279040,113.69978504,175.94,175.85,7.31978504]
[1753991279041,3.27,175.93,175.86,3.08]
[1753991279233,5.6865,175.89,175.86,3.08]
[1753991279433,3.27,175.91,175.83,10.39978504]
[1753991279843,7.31978504,175.92,175.83,7.31978504]
[1753991280034,3.27,175.91,175.83,10.39978504]
[1753991280437,7.31978504,175.9,175.81,10.39978504]
[1753991280641,3.27,175.89,175.81,10.39978504]
[1753991280938,7.31978504,175.9,175.81,7.31978504]
[1753991281236,3.27,175.85,175.83,3.08]
[1753991281436,8.9575,175.85,175.83,3.08]
[1753991281632,7.31978504,175.9,175.81,7.31978504]
[1753991281945,5.687,175.87,175.84,5.6875]
[1753991282241,5.687,175.87,175.86,3.08]
[1753991282537,3.27,175.93,175.86,3.08]
[1753991283236,5.6862,175.89,175.86,5.6869]
[1753991283536,106.38,175.94,175.88,3.08]
[1753991283737,106.38,175.94,175.85,7.31978504]
[1753991283941,8.9562,175.89,175.87,3.08]
[1753991284140,3.27,175.89,175.87,3.08]
[1753991284340,106.38,175.94,175.88,3.08]
[1753991284542,3.27,175.93,175.85,7.31978504]
[1753991284843,3.27,175.93,175.78,51.31978504]
[1753991284844,7.31978504,175.92,175.82,3.08]
[1753991285043,3.27,175.91,175.82,10.39978504]
[1753991285342,3.27,175.91,175.84,5.6875]
[1753991285732,5.6867,175.88,175.85,5.6874]
[1753991285936,8.9567,175.88,175.85,8.7674]
[1753991286136,3.27,175.87,175.85,5.6874]
[1753991286344,3.27,175.87,175.86,5.6871]
[1753991286544,8.9568,175.87,175.83,3.08]
[1753991287046,3.27,175.87,175.85,8.7673]
[1753991287237,3.27,175.93,175.85,3.08]
[1753991288044,3.27,175.93,175.85,8.7673]
[1753991288538,3.27,175.93,175.86,5.6869]
[1753991288739,3.27,175.93,175.86,3.08]
[1753991288936,5.6861,175.9,175.84,7.31978504]
[1753991289140,3.27,175.9,175.88,5.6863]
[1753991289343,3.27,175.9,175.88,8.7663]
[1753991289540,3.27,175.9,175.88,3.08]
[1753991289750,3.27,175.93,175.86,8.767]
[1753991290846,3.27,175.88,175.86,3.08]
[1753991291149,3.27,175.93,175.84,10.39978504]
[1753991291549,3.27,175.88,175.86,8.7671]
[1753991291953,3.27,175.93,175.79,3.08]
[1753991292256,7.31978504,175.92,175.83,3.08]
[1753991292452,3.27,175.91,175.83,3.08]
[1753991292753,8.9573,175.86,175.83,8.768]
[1753991292946,7.31978504,175.88,175.8,3.08]
[1753991293151,3.27,175.87,175.8,8.7689]
[1753991293452,7.31978504,175.82,175.74,3.08]
[1753991293645,3.27,175.76,175.74,3.08]
[1753991294049,3.27,175.78,175.75,3.08]
[1753991294253,5.6894,175.79,175.74,7.31978504]
[1753991294449,3.27,175.83,175.74,7.31978504]
[1753991294654,106.38,175.86,175.73,3.08]
[1753991294655,3.27,175.81,175.73,3.08]
[1753991295451,5.6898,175.78,175.74,5.6908]
[1753991295651,3.27,175.77,175.74,5.6908]
[1753991295951,3.27,175.79,175.76,3.08]
[1753991296353,3.27,175.78,175.76,3.08]
[1753991297354,3.27,175.83,175.75,3.08]
[1753991297556,5.689,175.81,175.75,3.08]
[1753991297750,8.959,175.81,175.75,3.08]
[1753991297950,8.959,175.81,175.78,3.08]
[1753991297951,3.27,175.81,175.78,3.08]
[1753991298154,3.27,175.81,175.79,3.08]
[1753991298346,3.27,175.85,175.78,7.31978504]
[1753991298550,3.27,175.85,175.79,3.08]
[1753991299060,5.6879,175.84,175.82,3.08]
[1753991299258,8.9579,175.84,175.82,3.08]
[1753991299756,8.9584,175.83,175.81,3.08]
[1753991299959,3.27,175.82,175.8,3.08]
[1753991300250,5.6879,175.84,175.81,5.6887]
[1753991300449,3.27,175.84,175.82,3.08]
[1753991300650,3.27,175.85,175.8,3.08]
[1753991300846,3.27,175.83,175.81,8.7686]
[1753991301759,109.65,175.86,175.84,3.08]
[1753991301956,106.38,175.86,175.8,7.31978504]
[1753991302162,106.38,175.86,175.79,3.08]
[1753991302356,3.27,175.8,175.78,10.39978504]
[1753991302660,3.27,175.8,175.78,16.08928504]
[1753991302862,3.27,175.84,175.74,7.31978504]
[1753991303059,3.27,175.84,175.77,3.08]
[1753991303559,3.27,175.84,175.77,8.7699]
[1753991304054,3.27,175.84,175.75,3.08]
[1753991304258,7.31978504,175.83,175.75,3.08]
[1753991304459,3.27,175.82,175.75,3.08]
[1753991304862,3.27,175.8,175.72,3.08]
[1753991305252,7.31978504,175.79,175.72,3.08]
[1753991305455,3.27,175.76,175.69,3.08]
[1753991306253,5.691,175.74,175.7,5.6922]
[1753991306552,3.27,175.74,175.7,3.08]
[1753991306757,3.27,175.74,175.71,5.6917]
[1753991306958,3.27,175.79,175.73,7.31978504]
[1753991307261,3.27,175.78,175.76,3.08]
[1753991307460,113.73978504,175.84,175.74,7.31978504]
[1753991307663,3.27,175.83,175.74,7.31978504]
[1753991307966,3.27,175.83,175.75,3.08]
[1753991308853,5.6899,175.78,175.75,3.08]
[1753991309055,3.27,175.78,175.76,3.21]
[1753991309358,113.73978504,175.84,175.74,7.31978504]
[1753991309557,3.27,175.83,175.78,7.31978504]
[1753991309862,5.6883,175.83,175.81,3.21]